Workbook

Sheet Reps_Distribution-Groups
A1: Subject | B1: TOTAL REPS | C1: VELOCITY | D1: REP>0,3 m/s | E1: REP>0,3-0,4 m/s | F1: REP>0,4-0,5 m/s | G1: REP>0,5-0,6 m/s | H1: REP>0,6-0,7 m/s | I1: REP>0,7-0,8 m/s | J1: REP>0,8-0,9 m/s | K1: REP>0,9-1,0 m/s | L1: REP>1,0-1,1 m/s | M1: REP>1,2 m/s | N1: Total
A2: AL1 | B2: 231.00 | C2: 0.86 | D2: 0.00 | E2: 0.00 | F2: 0 | G2: 0 | H2: 37 | I2: 57 | J2: 58.00 | K2: 31.00 | L2: 26.00 | M2: 22.00 | N2: 231
A3: AL2 | B3: 231.00 | C3: 0.84 | D3: 0.00 | E3: 0.00 | F3: 0 | G3: 0 | H3: 40 | I3: 62 | J3: 50.00 | K3: 45.00 | L3: 17.00 | M3: 17.00 | N3: 231
A4: AL3 | B4: 198.00 | C4: 0.85 | D4: 0.00 | E4: 0.00 | F4: 0 | G4: 11 | H4: 40 | I4: 37 | J4: 42.00 | K4: 19.00 | L4: 17.00 | M4: 32.00 | N4: 198
A5: AL4 | B5: 203.00 | C5: 0.87 | D5: 0.00 | E5: 0.00 | F5: 0 | G5: 1 | H5: 32 | I5: 41 | J5: 52.00 | K5: 34.00 | L5: 25.00 | M5: 18.00 | N5: 203
A6: AL5 | B6: 231.00 | C6: 0.87 | D6: 0.00 | E6: 0.00 | F6: 0 | G6: 0 | H6: 32 | I6: 51 | J6: 60.00 | K6: 40.00 | L6: 25.00 | M6: 23.00 | N6: 231
A7: AL6 | B7: 231.00 | C7: 0.87 | D7: 0.00 | E7: 0.00 | F7: 0 | G7: 1 | H7: 37 | I7: 59 | J7: 45.00 | K7: 41.00 | L7: 6.00 | M7: 42.00 | N7: 231
A8: AL7 | B8: 231.00 | C8: 0.85 | D8: 0.00 | E8: 0.00 | F8: 0 | G8: 8 | H8: 47 | I8: 37 | J8: 60.00 | K8: 33.00 | L8: 16.00 | M8: 30.00 | N8: 231
A9: AL8 | B9: 231.00 | C9: 0.86 | D9: 0.00 | E9: 1.00 | F9: 1 | G9: 4 | H9: 27 | I9: 64 | J9: 47.00 | K9: 37.00 | L9: 32.00 | M9: 18.00 | N9: 231
A10: AL9 | B10: 231.00 | C10: 0.85 | D10: 0.00 | E10: 0.00 | F10: 0 | G10: 3 | H10: 41 | I10: 49 | J10: 59.00 | K10: 39.00 | L10: 24.00 | M10: 16.00 | N10: 231
A11: AL10 | B11: 231.00 | C11: 0.87 | D11: 0.00 | E11: 0.00 | F11: 0 | G11: 1 | H11: 16 | I11: 65 | J11: 59.00 | K11: 41.00 | L11: 35.00 | M11: 17.00 | N11: 234
A12: AL11 | B12: 198.00 | C12: 0.86 | D12: 0.00 | E12: 0.00 | F12: 0 | G12: 1 | H12: 22 | I12: 68 | J12: 30.00 | K12: 32.00 | L12: 23.00 | M12: 22.00 | N12: 198
A13: AL12 | B13: 231.00 | C13: 0.86 | D13: 0.00 | E13: 0.00 | F13: 0 | G13: 0 | H13: 47 | I13: 51 | J13: 54.00 | K13: 33.00 | L13: 21.00 | M13: 25.00 | N13: 231
A14: AL13 | B14: 213.00 | C14: 0.84 | D14: 0.00 | E14: 0.00 | F14: 2 | G14: 3 | H14: 25 | I14: 44 | J14: 71.00 | K14: 41.00 | L14: 25.00 | M14: 2.00 | N14: 213
A15: mean | B15: =AVERAGE(B2:B14) -> 222.38 | C15: =AVERAGE(C2:C14) -> 0.86 | D15: 0.00 | E15: 0.08 | F15: 0.23 | G15: 2.54 | H15: 34.08 | I15: 52.69 | J15: 52.85 | K15: 35.85 | L15: 22.46 | M15: 21.85 | N15: 222.62
A16: SD | B16: =STDEV(B2:B14) -> 13.91 | C16: =STDEV(C2:C14) -> 0.01 | D16: 0.00 | E16: 0.28 | F16: 0.60 | G16: 3.41 | H16: 9.50 | I16: 10.73 | J16: 10.33 | K16: 6.67 | L16: 7.40 | M16: 9.54 | N16: 14.09
A17: CV (%) | B17: =B16/B15*100 -> 6.25 | C17: =C16/C15*100 -> 1.12 | D17: 0.00 | E17: 360.56 | F17: 259.63 | G17: 134.19 | H17: 27.88 | I17: 20.37 | J17: 19.54 | K17: 18.60 | L17: 32.95 | M17: 43.66 | N17: 6.33
A18: NAL1 | B18: 203.00 | C18: 0.88 | D18: 0.00 | E18: 0.00 | F18: 0.0 | G18: 0.0 | H18: 0.0 | I18: 77.0 | J18: 52.00 | K18: 35.00 | L18: 27.00 | M18: 12.00 | N18: 203
A19: NAL2 | B19: 231.00 | C19: 1.18 | D19: 0.00 | E19: 0.00 | F19: 0.0 | G19: 0.0 | H19: 0.0 | I19: 0.0 | J19: 0.00 | K19: 0.00 | L19: 31.00 | M19: 200.00 | N19: 231
A20: NAL3 | B20: 231.00 | C20: 0.91 | D20: 0.00 | E20: 0.00 | F20: 0.0 | G20: 0.0 | H20: 0.0 | I20: 21.0 | J20: 101.00 | K20: 69.00 | L20: 32.00 | M20: 8.00 | N20: 231
A21: NAL4 | B21: 231.00 | C21: 0.94 | D21: 0.00 | E21: 0.00 | F21: 0.0 | G21: 0.0 | H21: 0.0 | I21: 13.0 | J21: 85.00 | K21: 69.00 | L21: 27.00 | M21: 37.00 | N21: 231
A22: NAL5 | B22: 211.00 | C22: 0.92 | D22: 0.00 | E22: 0.00 | F22: 0.0 | G22: 0.0 | H22: 0.0 | I22: 15.0 | J22: 98.00 | K22: 47.00 | L22: 28.00 | M22: 23.00 | N22: 211
A23: NAL6 | B23: 231.00 | C23: 0.97 | D23: 0.00 | E23: 0.00 | F23: 0.0 | G23: 0.0 | H23: 0.0 | I23: 0.0 | J23: 63.00 | K23: 91.00 | L23: 47.00 | M23: 30.00 | N23: 231
A24: NAL7 | B24: 216.00 | C24: 0.91 | D24: 0.00 | E24: 0.00 | F24: 0.0 | G24: 0.0 | H24: 0.0 | I24: 34.0 | J24: 92.00 | K24: 31.00 | L24: 50.00 | M24: 9.00 | N24: 216
A25: NAL8 | B25: 231.00 | C25: 0.89 | D25: 0.00 | E25: 0.00 | F25: 0.0 | G25: 0.0 | H25: 3.0 | I25: 60.0 | J25: 63.00 | K25: 59.00 | L25: 19.00 | M25: 27.00 | N25: 231
A26: NAL9 | B26: 231.00 | C26: 1.03 | D26: 0.00 | E26: 0.00 | F26: 0.0 | G26: 0.0 | H26: 0.0 | I26: 0.0 | J26: 18.00 | K26: 69.00 | L26: 87.00 | M26: 57.00 | N26: 231
A27: NAL10 | B27: 237.00 | C27: 0.96 | D27: 0.00 | E27: 0.00 | F27: 0.0 | G27: 0.0 | H27: 0.0 | I27: 2.0 | J27: 43.00 | K27: 128.00 | L27: 60.00 | M27: 4.00 | N27: 237
A28: NAL11 | B28: 227.00 | C28: 0.91 | D28: 0.00 | E28: 0.00 | F28: 0.0 | G28: 0.0 | H28: 2.0 | I28: 56.0 | J28: 51.00 | K28: 66.00 | L28: 17.00 | M28: 35.00 | N28: 227
A29: mean | B29: =AVERAGE(B18:B28) -> 225.45 | C29: =AVERAGE(C18:C28) -> 0.95 | D29: 0.00 | E29: 0.00 | F29: 0.00 | G29: 0.00 | H29: 0.45 | I29: 25.27 | J29: 60.55 | K29: 60.36 | L29: 38.64 | M29: 40.18 | N29: 225.45
A30: SD | B30: =STDEV(B18:B28) -> 10.60 | C30: =STDEV(C18:C28) -> 0.08 | D30: 0.00 | E30: 0.00 | F30: 0.00 | G30: 0.00 | H30: 1.04 | I30: 27.63 | J30: 32.54 | K30: 33.31 | L30: 20.82 | M30: 55.27 | N30: 10.60
A31: CV (%) | B31: =B30/B29*100 -> 4.70 | C31: =C30/C29*100 -> 8.88 | D31: 0.00 | E31: 0.00 | F31: 0.00 | G31: 0.00 | H31: 227.86 | I31: 109.33 | J31: 53.74 | K31: 55.19 | L31: 53.89 | M31: 137.55 | N31: 4.70

Sheet Raw_Data
AB1: GAP - difference between programmed and actually performed at each session (corresponging to programmed %1-RM)
A2: Subject | B2: 1RM_PRE | C2: 1RM_POST | D2: CMJ_PRE | E2: CMJ_POST | F2: T10m_PRE | G2: T10m_POST | H2: T20m_PRE | I2: T20m_POST | J2: Velocity_Week-1 | K2: Velocity_Week-8 | L2: Velocity_Loss_Session-1 | M2: Velocity_Loss_Session-2 | N2: Velocity_Loss_Session-3 | O2: Velocity_Loss_Session-4 | P2: Velocity_Loss_Session-5 | Q2: Velocity_Loss_Session-6 | R2: Velocity_Loss_Session-7 | S2: Velocity_Loss_Session-8 | T2: Velocity_Loss_Session-9 | U2: Velocity_Loss_Session-10 | V2: Velocity_Loss_Session-11 | W2: Velocity_Loss_Session-12 | X2: Velocity_Loss_Session-13 | Y2: Velocity_Loss_Session-14 | Z2: Velocity_Loss_Session-15 | AA2: Velocity_Loss_Session-16 | AB2: 50% 1-RM | AC2: 50% 1-RM | AD2: 60% 1-RM | AE2: 60% 1-RM | AF2: 70% 1-RM | AG2: 70% 1-RM | AH2: 70% 1-RM | AI2: 70% 1-RM | AJ2: 75% 1-RM | AK2: 75% 1-RM | AL2: 75% 1-RM | AM2: 75% 1-RM | AN2: 80% 1-RM | AO2: 80% 1-RM | AP2: 80% 1-RM | AQ2: 80% 1-RM
A3: AL1 | B3: 97.7 | C3: 104.5 | D3: 40.3 | E3: 46.9 | F3: 1.73 | G3: 1.70 | H3: 3.03 | I3: 3.00 | J3: 1.12 | K3: 0.69 | L3: 9.18 | M3: 10.19 | N3: 12.03 | O3: 14.41 | P3: 12.98 | Q3: 10.15 | R3: 16.96 | S3: 13.20 | T3: 8.10 | U3: 10.82 | V3: 14.78 | W3: 10.58 | X3: 5.64 | Y3: 11.40 | Z3: 12.42 | AA3: 2.87 | AB3: 55.1 | AC3: 48.8 | AD3: 63.5 | AE3: 64.0 | AF3: 70.5 | AG3: 66.7 | AH3: 71.3 | AI3: 67.2 | AJ3: 74.1 | AK3: 73.8 | AL3: 71.6 | AM3: 74.1 | AN3: 79.3 | AO3: 79.6 | AP3: 79.0 | AQ3: 80.3
A4: AL2 | B4: 86 | C4: 102.4 | D4: 38.1 | E4: 39.2 | F4: 1.90 | G4: 1.86 | H4: 3.22 | I4: 3.18 | J4: 1.14 | K4: 0.66 | L4: 6.32 | M4: 15.45 | N4: 12.61 | O4: 7.55 | P4: 12.48 | Q4: 12.61 | R4: 12.60 | S4: 16.97 | T4: 7.97 | U4: 12.95 | V4: 21.82 | W4: 18.42 | X4: 4.76 | Y4: 7.04 | Z4: 8.84 | AA4: 2.55 | AB4: 52.2 | AC4: 52.8 | AD4: 65.7 | AE4: 60.7 | AF4: 65.4 | AG4: 65.4 | AH4: 70.0 | AI4: 73.2 | AJ4: 74.5 | AK4: 79.2 | AL4: 76.0 | AM4: 77.8 | AN4: 78.4 | AO4: 79.7 | AP4: 80.3 | AQ4: 78.3
A5: AL3 | B5: 95 | C5: 100.4 | D5: 37.1 | E5: 38.4 | F5: 1.88 | G5: 1.86 | H5: 3.19 | I5: 3.16 | J5: 1.14 | K5: 0.65 | L5: 6.59 | N5: 11.04 | O5: 14.07 | P5: 16.90 | Q5: 15.83 | R5: 12.91 | T5: 17.64 | U5: 26.97 | V5: 22.79 | X5: 5.96 | Y5: 18.94 | Z5: 16.21 | AA5: 12.11 | AB5: 50.2 | AC5: 51.5 | AD5: 61.4 | AE5: 58.8 | AF5: 68.6 | AG5: 66.0 | AH5: 70.6 | AI5: 70.0 | AJ5: 77.1 | AK5: 78.4 | AL5: 76.4 | AM5: 76.0 | AN5: 79.0 | AO5: 81.0 | AP5: 80.3 | AQ5: 80.9
A6: AL4 | B6: 90.3 | C6: 101.2 | D6: 38 | E6: 42.8 | F6: 1.89 | G6: 1.87 | H6: 3.18 | I6: 3.16 | J6: 1.11 | K6: 0.68 | L6: 12.31 | M6: 14.07 | N6: 14.23 | O6: 17.63 | P6: 10.76 | Q6: 10.66 | R6: 9.52 | S6: 14.15 | T6: 12.17 | U6: 16.00 | V6: 18.22 | W6: 16.13 | X6: 8.00 | Y6: 5.60 | Z6: 5.44 | AA6: 4.46 | AB6: 50.9 | AC6: 52.2 | AD6: 62.7 | AE6: 61.4 | AF6: 66.7 | AG6: 66.7 | AH6: 69.9 | AI6: 67.8 | AJ6: 75.8 | AK6: 78.4 | AL6: 74.5 | AM6: 76.4 | AN6: 79.7 | AO6: 80.3 | AP6: 80.9 | AQ6: 79.7
A7: AL5 | B7: 59.7 | C7: 71.9 | D7: 37 | E7: 40.6 | F7: 1.89 | G7: 1.85 | H7: 3.20 | I7: 3.15 | J7: 1.13 | K7: 0.66 | L7: 10.30 | M7: 17.80 | N7: 12.20 | O7: 7.91 | P7: 9.31 | Q7: 12.82 | R7: 9.94 | S7: 17.53 | T7: 11.08 | U7: 10.38 | V7: 17.86 | W7: 16.12 | X7: 3.28 | Y7: 14.40 | Z7: 14.87 | AA7: 2.39 | AB7: 50.2 | AC7: 49.5 | AD7: 58.8 | AE7: 60.1 | AF7: 65.3 | AG7: 64.7 | AH7: 70.0 | AI7: 70.3 | AJ7: 74.6 | AK7: 73.8 | AL7: 75.1 | AM7: 74.5 | AN7: 79.1 | AO7: 78.4 | AP7: 80.3 | AQ7: 80.9
A8: AL6 | B8: 91.7 | C8: 106 | D8: 32.4 | E8: 39.1 | F8: 1.85 | G8: 1.81 | H8: 3.15 | I8: 3.10 | J8: 1.14 | K8: 0.66 | L8: 10.72 | M8: 12.61 | N8: 7.52 | O8: 8.60 | P8: 8.11 | Q8: 6.48 | R8: 7.68 | S8: 9.81 | T8: 5.99 | U8: 8.49 | V8: 14.17 | W8: 14.70 | X8: 7.38 | Y8: 12.54 | Z8: 13.88 | AA8: 5.80 | AB8: 48.8 | AC8: 48.8 | AD8: 60.1 | AE8: 61.4 | AF8: 64.7 | AG8: 69.3 | AH8: 69.3 | AI8: 70.6 | AJ8: 77.1 | AK8: 74.5 | AL8: 75.2 | AM8: 77.1 | AN8: 79.3 | AO8: 80.3 | AP8: 81.6 | AQ8: 80.9
A9: AL7 | B9: 66 | C9: 76.4 | D9: 34 | E9: 37.6 | F9: 1.90 | G9: 1.88 | H9: 3.22 | I9: 3.19 | J9: 1.11 | K9: 0.65 | L9: 13.19 | M9: 9.22 | N9: 12.77 | O9: 11.51 | P9: 12.18 | Q9: 11.17 | R9: 7.05 | S9: 14.87 | T9: 7.13 | U9: 9.26 | V9: 19.13 | W9: 21.83 | X9: 9.15 | Y9: 11.64 | Z9: 10.00 | AA9: 8.46 | AB9: 50.2 | AC9: 51.5 | AD9: 61.4 | AE9: 62.1 | AF9: 64.0 | AG9: 67.4 | AH9: 69.2 | AI9: 70.0 | AJ9: 73.1 | AK9: 77.7 | AL9: 75.1 | AM9: 78.4 | AN9: 84.8 | AO9: 81.6 | AP9: 80.9 | AQ9: 85.0
A10: AL8 | B10: 74.7 | C10: 81 | D10: 38.1 | E10: 41.4 | F10: 1.83 | G10: 1.81 | H10: 3.13 | I10: 3.10 | J10: 1.12 | K10: 0.67 | L10: 7.46 | M10: 12.78 | N10: 5.65 | O10: 8.86 | P10: 8.38 | Q10: 11.22 | R10: 9.22 | S10: 10.56 | T10: 5.01 | U10: 7.36 | V10: 3.87 | W10: 15.53 | X10: 6.54 | Y10: 15.85 | Z10: 15.50 | AA10: 5.34 | AB10: 51.5 | AC10: 47.5 | AD10: 58.1 | AE10: 61.4 | AF10: 66.1 | AG10: 65.3 | AH10: 69.2 | AI10: 69.2 | AJ10: 73.8 | AK10: 75.8 | AL10: 70.6 | AM10: 75.2 | AN10: 78.4 | AO10: 80.3 | AP10: 79.6 | AQ10: 79.7
A11: AL9 | B11: 81.3 | C11: 88.8 | D11: 39.3 | E11: 41 | F11: 1.80 | G11: 1.79 | H11: 3.08 | I11: 3.06 | J11: 1.11 | K11: 0.66 | L11: 14.24 | M11: 16.74 | N11: 15.57 | O11: 9.24 | P11: 8.56 | Q11: 11.79 | R11: 7.55 | S11: 11.54 | T11: 4.96 | U11: 7.55 | V11: 14.07 | W11: 16.29 | X11: 12.00 | Y11: 10.95 | Z11: 11.75 | AA11: 9.97 | AB11: 52.9 | AC11: 53.5 | AD11: 58.8 | AE11: 61.4 | AF11: 65.4 | AG11: 72.3 | AH11: 65.4 | AI11: 68.6 | AJ11: 75.2 | AK11: 75.2 | AL11: 73.1 | AM11: 73.2 | AN11: 79.6 | AO11: 81.6 | AP11: 80.9 | AQ11: 80.9
A12: AL10 | B12: 81.6 | C12: 91 | D12: 30.4 | E12: 31.3 | F12: 1.98 | G12: 1.97 | H12: 3.33 | I12: 3.31 | J12: 1.13 | K12: 0.67 | L12: 8.31 | M12: 15.48 | N12: 9.84 | O12: 12.28 | P12: 10.73 | Q12: 9.36 | R12: 14.30 | S12: 12.54 | T12: 8.63 | U12: 6.57 | V12: 6.49 | W12: 11.41 | X12: 3.75 | Y12: 8.09 | Z12: 9.22 | AA12: 4.91 | AB12: 51.5 | AC12: 50.8 | AD12: 59.4 | AE12: 60.8 | AF12: 67.4 | AG12: 64.7 | AH12: 71.3 | AI12: 71.9 | AJ12: 73.2 | AK12: 75.1 | AL12: 74.5 | AM12: 75.7 | AN12: 79.6 | AO12: 74.5 | AP12: 79.0 | AQ12: 79.0
A13: AL11 | B13: 120.5 | C13: 125.8 | D13: 39.4 | E13: 42.2 | F13: 1.87 | G13: 1.85 | H13: 3.17 | I13: 3.15 | J13: 1.14 | K13: 0.65 | L13: 9.22 | M13: 11.00 | N13: 7.30 | O13: 11.18 | P13: 14.37 | R13: 16.28 | S13: 12.78 | T13: 11.81 | U13: 5.49 | V13: 4.26 | W13: 3.07 | X13: 7.97 | Z13: 9.76 | AA13: 6.59 | AB13: 50.9 | AC13: 50.8 | AD13: 59.4 | AE13: 62.9 | AF13: 62.1 | AG13: 66.8 | AH13: 72.9 | AI13: 71.9 | AJ13: 71.9 | AK13: 71.9 | AL13: 76.4 | AM13: 79.0 | AN13: 78.4 | AO13: 80.1 | AP13: 80.9 | AQ13: 79.6
A14: AL12 | B14: 99.9 | C14: 120 | D14: 43.8 | E14: 44.1 | F14: 1.78 | G14: 1.78 | H14: 3.07 | I14: 3.06 | J14: 1.13 | K14: 0.68 | L14: 8.74 | M14: 9.92 | N14: 10.36 | O14: 15.11 | P14: 5.39 | Q14: 9.73 | R14: 10.02 | S14: 8.01 | T14: 8.38 | U14: 7.64 | V14: 9.09 | W14: 16.76 | X14: 5.00 | Y14: 7.41 | Z14: 9.61 | AA14: 3.84 | AB14: 52.9 | AC14: 45.5 | AD14: 62.1 | AE14: 61.4 | AF14: 65.4 | AG14: 68.0 | AH14: 71.9 | AI14: 69.3 | AJ14: 74.5 | AK14: 77.1 | AL14: 75.7 | AM14: 74.5 | AN14: 79.7 | AO14: 82.2 | AP14: 80.3 | AQ14: 79.7
A15: AL13 | B15: 67.4 | C15: 83.7 | D15: 37.7 | E15: 39.4 | F15: 1.87 | G15: 1.85 | H15: 3.19 | I15: 3.15 | J15: 1.14 | K15: 0.68 | L15: 14.00 | M15: 14.83 | N15: 13.80 | O15: 20.67 | P15: 13.35 | Q15: 15.89 | R15: 11.35 | S15: 8.43 | T15: 8.26 | U15: 6.47 | V15: 14.42 | W15: 15.74 | X15: 8.23 | Y15: 12.49 | Z15: 12.59 | AA15: 6.73 | AB15: 51.4 | AC15: 50.2 | AD15: 62.1 | AE15: 62.1 | AF15: 62.1 | AG15: 66.0 | AH15: 68.6 | AI15: 69.9 | AJ15: 69.9 | AK15: 73.8 | AL15: 74.5 | AM15: 76.4 | AN15: 81.6 | AO15: 81.6 | AP15: 78.7 | AQ15: 80.9
A16: mean | B16: =AVERAGE(B3:B15) -> 85.52 | C16: =AVERAGE(C3:C15) -> 96.39 | D16: 37.35 | E16: 40.31 | F16: 1.86 | G16: 1.84 | H16: 3.17 | I16: 3.14 | J16: 1.13 | K16: 0.67 | L16: 10.05 | M16: 13.34 | N16: 11.15 | O16: 12.23 | P16: 11.04 | Q16: 11.48 | R16: 11.18 | S16: 12.53 | T16: 9.01 | U16: 10.46 | V16: 13.92 | W16: 14.72 | X16: 6.74 | Y16: 11.36 | Z16: 11.54 | AA16: 5.85 | AB16: =AVERAGE(AB3:AB15) -> 51.43 | AC16: =AVERAGE(AC3:AC15) -> 50.27 | AD16: =AVERAGE(AD3:AD15) -> 61.04 | AE16: =AVERAGE(AE3:AE15) -> 61.42 | AF16: =AVERAGE(AF3:AF15) -> 65.66 | AG16: =AVERAGE(AG3:AG15) -> 66.86 | AH16: =AVERAGE(AH3:AH15) -> 69.96 | AI16: =AVERAGE(AI3:AI15) -> 69.99 | AJ16: =AVERAGE(AJ3:AJ15) -> 74.21 | AK16: =AVERAGE(AK3:AK15) -> 75.73 | AL16: =AVERAGE(AL3:AL15) -> 74.52 | AM16: =AVERAGE(AM3:AM15) -> 76.02 | AN16: =AVERAGE(AN3:AN15) -> 79.76 | AO16: =AVERAGE(AO3:AO15) -> 80.09 | AP16: =AVERAGE(AP3:AP15) -> 80.22 | AQ16: =AVERAGE(AQ3:AQ15) -> 80.45
A17: SD | B17: =STDEV(B3:B15) -> 16.47 | C17: =STDEV(C3:C15) -> 16.18 | D17: 3.47 | E17: 3.71 | F17: 0.06 | G17: 0.06 | H17: 0.08 | I17: 0.08 | J17: 0.01 | K17: 0.01 | L17: 2.70 | M17: 2.83 | N17: 2.93 | O17: 4.01 | P17: 3.09 | Q17: 2.64 | R17: 3.24 | S17: 3.06 | T17: 3.47 | U17: 5.75 | V17: 6.30 | W17: 4.67 | X17: 2.40 | Y17: 3.91 | Z17: 3.10 | AA17: 2.93 | AB17: =STDEV(AB3:AB15) -> 1.58 | AC17: 2.22 | AD17: 2.20 | AE17: 1.28 | AF17: 2.35 | AG17: 2.10 | AH17: =STDEV(AH3:AH15) -> 1.83 | AI17: 1.66 | AJ17: 1.97 | AK17: 2.23 | AL17: 1.78 | AM17: 1.73 | AN17: 1.74 | AO17: 1.98 | AP17: 0.90 | AQ17: 1.61
A18: CV (%) | B18: =B17/B16*100 -> 19.26 | C18: =C17/C16*100 -> 16.78 | D18: 9.28 | E18: 9.20 | F18: 3.40 | G18: 3.44 | H18: 2.44 | I18: 2.43 | J18: 1.22 | K18: 2.04 | L18: 26.86 | M18: 21.22 | N18: 26.32 | O18: 32.74 | P18: 28.02 | Q18: 23.01 | R18: 28.99 | S18: 24.39 | T18: 38.52 | U18: 54.99 | V18: 45.24 | W18: 31.76 | X18: 35.54 | Y18: 34.40 | Z18: 26.82 | AA18: 50.15 | AB18: =AB17/AB16*100 -> 3.06 | AC18: =AC17/AC16*100 -> 4.41 | AD18: =AD17/AD16*100 -> 3.60 | AE18: =AE17/AE16*100 -> 2.08 | AF18: =AF17/AF16*100 -> 3.58 | AG18: =AG17/AG16*100 -> 3.14 | AH18: =AH17/AH16*100 -> 2.62 | AI18: =AI17/AI16*100 -> 2.38 | AJ18: =AJ17/AJ16*100 -> 2.65 | AK18: =AK17/AK16*100 -> 2.94 | AL18: =AL17/AL16*100 -> 2.39 | AM18: =AM17/AM16*100 -> 2.27 | AN18: =AN17/AN16*100 -> 2.18 | AO18: =AO17/AO16*100 -> 2.47 | AP18: =AP17/AP16*100 -> 1.12 | AQ18: =AQ17/AQ16*100 -> 2.01
A19: NAL1 | B19: 65.5 | C19: 80.7 | D19: 27.0 | E19: 32.0 | F19: 1.97 | G19: 1.93 | H19: 3.32 | I19: 3.27 | J19: 1.14 | K19: 0.78 | L19: 9.00 | N19: 16.91 | O19: 6.00 | P19: 10.39 | R19: 8.66 | S19: 6.00 | T19: 8.33 | U19: 6.94 | V19: 11.38 | W19: 5.50 | X19: 3.30 | Y19: 7.32 | Z19: 6.94 | AA19: 3.51 | AB19: 50.8 | AC19: 49.3 | AD19: 59.4 | AE19: 58.8 | AF19: 61.4 | AG19: 61.8 | AH19: 67.3 | AI19: 66.7 | AJ19: 71.4 | AK19: 69.9 | AL19: 69.9 | AM19: 70.0 | AN19: 72.9 | AO19: 73.1 | AP19: 72.5 | AQ19: 71.2
A20: NAL2 | B20: 81.9 | C20: 130.1 | D20: 44.6 | E20: 50.1 | F20: 1.76 | G20: 1.70 | H20: 3.02 | I20: 2.94 | J20: 1.15 | K20: 1.18 | L20: 10.02 | M20: 9.20 | N20: 9.89 | O20: 14.75 | P20: 5.32 | Q20: 5.11 | R20: 7.78 | S20: 5.66 | T20: 5.84 | U20: 6.85 | V20: 5.94 | W20: 12.67 | X20: 3.48 | Y20: 6.77 | Z20: 4.40 | AA20: 2.09 | AB20: 40.2 | AC20: 40.2 | AD20: 52.2 | AE20: 46.2 | AF20: 50.8 | AG20: 49.5 | AH20: 52.8 | AI20: 48.2 | AJ20: 47.5 | AK20: 48.9 | AL20: 52.5 | AM20: 54.1 | AN20: 50.2 | AO20: 52.8 | AP20: 52.2 | AQ20: 51.2
A21: NAL3 | B21: 55.9 | C21: 75.6 | D21: 27.0 | E21: 34.9 | F21: 1.99 | G21: 1.93 | H21: 3.33 | I21: 3.25 | J21: 1.11 | K21: 0.88 | L21: 10.49 | M21: 15.90 | N21: 13.59 | O21: 14.27 | P21: 10.27 | Q21: 12.78 | R21: 12.17 | S21: 13.42 | T21: 7.71 | U21: 8.00 | V21: 10.94 | W21: 11.90 | X21: 4.36 | Y21: 5.92 | Z21: 7.00 | AA21: 3.96 | AB21: 58.8 | AC21: 55.4 | AD21: 62.0 | AE21: 60.7 | AF21: 63.4 | AG21: 62.5 | AH21: 67.9 | AI21: 71.2 | AJ21: 66.0 | AK21: 65.3 | AL21: 68.6 | AM21: 68.0 | AN21: 67.3 | AO21: 71.9 | AP21: 69.5 | AQ21: 66.7
A22: NAL4 | B22: 67.4 | C22: 78.4 | D22: 32.2 | E22: 37.6 | F22: 1.88 | G22: 1.84 | H22: 3.19 | I22: 3.14 | J22: 1.12 | K22: 0.82 | L22: 11.72 | N22: 8.37 | O22: 13.48 | P22: 18.82 | Q22: 7.56 | R22: 5.14 | S22: 8.69 | T22: 4.13 | U22: 6.23 | V22: 6.98 | W22: 12.69 | X22: 2.10 | Y22: 6.43 | Z22: 3.86 | AA22: 1.60 | AB22: 50.7 | AC22: 48.2 | AD22: 57.5 | AE22: 58.8 | AF22: 63.4 | AG22: 64.0 | AH22: 64.7 | AI22: 64.7 | AJ22: 65.4 | AK22: 65.4 | AL22: 66.7 | AM22: 66.7 | AN22: 70.6 | AO22: 71.2 | AP22: 69.2 | AQ22: 69.9
A23: NAL5 | B23: 81.3 | C23: 110.3 | D23: 29.8 | E23: 33.1 | F23: 1.97 | G23: 1.92 | H23: 3.29 | I23: 3.23 | J23: 1.12 | K23: 0.87 | L23: 10.58 | M23: 8.33 | N23: 13.01 | O23: 12.00 | P23: 4.41 | Q23: 9.00 | S23: 8.59 | T23: 4.03 | U23: 7.22 | V23: 7.97 | W23: 9.68 | X23: 6.09 | Y23: 5.95 | Z23: 4.64 | AA23: 1.17 | AB23: 51.5 | AC23: 52.2 | AD23: 59.5 | AE23: 60.1 | AF23: 63.4 | AH23: 66.7 | AI23: 67.3 | AJ23: 69.9 | AK23: 68.6 | AL23: 68.6 | AM23: 69.3 | AN23: 74.5 | AO23: 72.5 | AP23: 69.9 | AQ23: 67.3
A24: NAL6 | B24: 69.9 | C24: 86.3 | D24: 32.1 | E24: 36.2 | F24: 1.88 | G24: 1.83 | H24: 3.18 | I24: 3.12 | J24: 1.12 | K24: 0.90 | L24: 10.44 | M24: 16.07 | N24: 8.73 | O24: 18.67 | P24: 10.21 | Q24: 11.64 | R24: 5.31 | S24: 11.68 | T24: 6.66 | U24: 10.43 | V24: 8.43 | W24: 5.70 | X24: 2.64 | Y24: 5.11 | Z24: 5.77 | AA24: 1.84 | AB24: 50.8 | AC24: 51.5 | AD24: 58.1 | AE24: 58.1 | AF24: 64.1 | AG24: 62.1 | AH24: 62.1 | AI24: 60.1 | AJ24: 64.0 | AK24: 66.7 | AL24: 65.3 | AM24: 62.7 | AN24: 66.7 | AO24: 68.0 | AP24: 66.0 | AQ24: 65.1
A25: NAL7 | B25: 93.9 | C25: 109.9 | D25: 29.5 | E25: 35.4 | F25: 1.91 | G25: 1.96 | H25: 3.22 | I25: 3.16 | J25: 1.07 | K25: 0.93 | L25: 6.00 | N25: 7.95 | O25: 13.92 | P25: 10.36 | Q25: 11.19 | R25: 13.27 | S25: 10.27 | T25: 7.93 | U25: 5.10 | V25: 2.01 | W25: 1.47 | X25: 0.32 | Y25: 0.78 | Z25: 3.00 | AA25: 0.28 | AB25: 52.1 | AC25: 51.7 | AD25: 60.1 | AE25: 58.8 | AF25: 66.0 | AG25: 67.2 | AH25: 71.2 | AI25: 71.2 | AJ25: 70.6 | AK25: 69.9 | AL25: 68.6 | AM25: 68.0 | AN25: 73.1 | AO25: 73.1 | AP25: 61.0 | AQ25: 57.0
A26: NAL8 | B26: 82.5 | C26: 102.7 | D26: 33.8 | E26: 38.1 | F26: 1.87 | G26: 1.83 | H26: 3.17 | I26: 3.13 | J26: 1.09 | K26: 0.84 | L26: 11.17 | M26: 17.22 | N26: 10.00 | O26: 13.24 | P26: 6.67 | Q26: 8.71 | R26: 8.10 | S26: 9.49 | T26: 7.35 | U26: 6.48 | V26: 9.77 | W26: 10.58 | X26: 2.50 | Y26: 5.08 | Z26: 1.00 | AA26: 2.62 | AB26: 52.2 | AC26: 51.5 | AD26: 62.1 | AE26: 62.1 | AF26: 64.1 | AG26: 63.4 | AH26: 66.7 | AI26: 67.3 | AJ26: 72.5 | AK26: 69.9 | AL26: 69.9 | AM26: 69.9 | AN26: 76.4 | AO26: 73.8 | AP26: 73.2 | AQ26: 69.3
A27: NAL9 | B27: 67.8 | C27: 91.5 | D27: 33.8 | E27: 41.5 | F27: 1.89 | G27: 1.79 | H27: 3.19 | I27: 3.07 | J27: 1.07 | K27: 0.99 | L27: 11.22 | M27: 12.65 | N27: 7.87 | O27: 5.48 | P27: 5.96 | Q27: 5.29 | R27: 7.61 | S27: 7.13 | T27: 4.09 | U27: 2.00 | V27: 5.98 | W27: 8.54 | X27: 2.67 | Y27: 3.43 | Z27: 4.02 | AA27: 4.63 | AB27: 58.0 | AC27: 45.5 | AD27: 48.8 | AE27: 53.5 | AF27: 53.5 | AG27: 54.2 | AH27: 61.4 | AI27: 56.1 | AJ27: 64.7 | AK27: 62.1 | AL27: 62.7 | AM27: 56.1 | AN27: 60.7 | AO27: 62.8 | AP27: 64.7 | AQ27: 64.1
A28: NAL10 | B28: 64.2 | C28: 83.3 | D28: 40.3 | E28: 42.0 | F28: 1.77 | G28: 1.74 | H28: 3.05 | I28: 3.01 | J28: 1.10 | K28: 0.97 | L28: 15.22 | M28: 14.91 | N28: 8.12 | O28: 8.47 | P28: 6.70 | Q28: 8.57 | R28: 9.03 | S28: 11.13 | T28: 7.57 | U28: 4.97 | V28: 6.69 | W28: 6.23 | X28: 3.39 | Y28: 5.95 | Z28: 4.34 | AA28: 5.94 | AB28: 58.1 | AC28: 59.5 | AD28: 63.4 | AE28: 58.1 | AF28: 59.4 | AG28: 58.8 | AH28: 68.8 | AI28: 68.0 | AJ28: 63.4 | AK28: 65.4 | AL28: 68.7 | AM28: 65.4 | AN28: 64.0 | AO28: 62.1 | AP28: 60.7 | AQ28: 60.7
A29: NAL11 | B29: 84.5 | C29: 101.4 | D29: 31.4 | E29: 38.9 | F29: 1.94 | G29: 1.89 | H29: 3.25 | I29: 3.19 | J29: 1.11 | K29: 0.81 | L29: 7.95 | M29: 9.99 | N29: 12.07 | O29: 9.97 | P29: 7.51 | Q29: 5.08 | R29: 4.95 | S29: 6.27 | T29: 7.14 | U29: 6.29 | V29: 8.01 | W29: 6.80 | X29: 4.22 | Y29: 4.68 | Z29: 1.84 | AA29: 1.84 | AB29: 50.8 | AC29: 49.5 | AD29: 59.5 | AE29: 58.1 | AF29: 63.4 | AG29: 60.7 | AH29: 68.6 | AI29: 65.4 | AJ29: 72.6 | AK29: 72.6 | AL29: 70.6 | AM29: 73.1 | AN29: 74.5 | AO29: 73.8 | AP29: 72.5 | AQ29: 70.6
A30: mean | B30: =AVERAGE(B12:B29) -> 72.53 | C30: =AVERAGE(C12:C29) -> 88.89 | D30: 31.27 | E30: 35.00 | F30: 1.87 | G30: 1.84 | H30: 2.98 | I30: 2.93 | J30: 1.06 | K30: 0.85 | L30: 10.76 | M30: 12.86 | N30: 11.01 | O30: 13.25 | P30: 10.15 | Q30: 9.81 | R30: 10.43 | S30: 10.01 | T30: 8.82 | U30: 9.33 | V30: 10.21 | W30: 10.55 | X30: 5.82 | Y30: 7.95 | Z30: 7.19 | AA30: 6.14 | AB30: =AVERAGE(AB16:AB29) -> 45.01 | AC30: =AVERAGE(AC16:AC29) -> 43.67 | AD30: =AVERAGE(AD16:AD29) -> 50.68 | AE30: =AVERAGE(AE16:AE29) -> 49.86 | AF30: =AVERAGE(AF16:AF29) -> 53.18 | AG30: =AVERAGE(AG16:AG29) -> 52.03 | AH30: =AVERAGE(AH16:AH29) -> 56.61 | AI30: =AVERAGE(AI16:AI29) -> 55.72 | AJ30: =AVERAGE(AJ16:AJ29) -> 57.63 | AK30: =AVERAGE(AK16:AK29) -> 57.54 | AL30: =AVERAGE(AL16:AL29) -> 57.92 | AM30: =AVERAGE(AM16:AM29) -> 57.38 | AN30: =AVERAGE(AN16:AN29) -> 59.62 | AO30: =AVERAGE(AO16:AO29) -> 59.99 | AP30: =AVERAGE(AP16:AP29) -> 58.12 | AQ30: =AVERAGE(AQ16:AQ29) -> 56.94
A31: SD | B31: =STDEV(B12:B29) -> 25.00 | C31: =STDEV(C12:C29) -> 30.92 | D31: 10.50 | E31: 11.39 | F31: 0.58 | G31: 0.58 | H31: 0.75 | I31: 0.74 | J31: 0.26 | K31: 0.38 | L31: 4.87 | M31: 4.46 | N31: 4.92 | O31: 6.47 | P31: 5.95 | Q31: 4.85 | R31: 5.96 | S31: 4.60 | T31: 7.71 | U31: 11.55 | V31: 9.29 | W31: 6.88 | X31: 7.70 | Y31: 7.35 | Z31: 5.93 | AA31: 11.15 | AB31: =STDEV(AB16:AB29) -> 18.64 | AC31: =STDEV(AC16:AC29) -> 17.66 | AD31: =STDEV(AD16:AD29) -> 20.61 | AE31: =STDEV(AE16:AE29) -> 20.79 | AF31: =STDEV(AF16:AF29) -> 21.72 | AG31: =STDEV(AG16:AG29) -> 22.45 | AH31: =STDEV(AH16:AH29) -> 23.50 | AI31: =STDEV(AI16:AI29) -> 23.60 | AJ31: =STDEV(AJ16:AJ29) -> 24.35 | AK31: =STDEV(AK16:AK29) -> 24.09 | AL31: =STDEV(AL16:AL29) -> 24.18 | AM31: =STDEV(AM16:AM29) -> 24.18 | AN31: =STDEV(AN16:AN29) -> 25.54 | AO31: =STDEV(AO16:AO29) -> 25.36 | AP31: =STDEV(AP16:AP29) -> 25.12 | AQ31: =STDEV(AQ16:AQ29) -> 24.36
A32: CV (%) | B32: =B31/B30*100 -> 34.47 | C32: =C31/C30*100 -> 34.78 | D32: 33.58 | E32: 32.54 | F32: 30.93 | G32: 31.73 | H32: 25.20 | I32: 25.17 | J32: 24.82 | K32: 44.38 | L32: 45.26 | M32: 34.68 | N32: 44.68 | O32: 48.83 | P32: 58.61 | Q32: 49.43 | R32: 57.10 | S32: 45.94 | T32: 87.35 | U32: 123.86 | V32: 90.92 | W32: 65.17 | X32: 132.42 | Y32: 92.46 | Z32: 82.41 | AA32: 181.69 | AB32: =AB31/AB30*100 -> 41.43 | AC32: =AC31/AC30*100 -> 40.43 | AD32: =AD31/AD30*100 -> 40.68 | AE32: =AE31/AE30*100 -> 41.70 | AF32: =AF31/AF30*100 -> 40.84 | AG32: =AG31/AG30*100 -> 43.14 | AH32: =AH31/AH30*100 -> 41.50 | AI32: =AI31/AI30*100 -> 42.35 | AJ32: =AJ31/AJ30*100 -> 42.25 | AK32: =AK31/AK30*100 -> 41.86 | AL32: =AL31/AL30*100 -> 41.75 | AM32: =AM31/AM30*100 -> 42.15 | AN32: =AN31/AN30*100 -> 42.83 | AO32: =AO31/AO30*100 -> 42.27 | AP32: =AP31/AP30*100 -> 43.21 | AQ32: =AQ31/AQ30*100 -> 42.77
